bitfinex/quotes_SOLUSD_20250406
["timestamp","ask_amount","ask_price","bid_price","bid_amount"]
[1743909092721,0.18644738,120.2,120.19,101.79521212]
[1743909095316,0.35849844,120.2,120.19,101.79521212]
[1743909096025,0.20205106,120.2,120.19,101.79521212]
[1743909097801,0.20205106,120.2,120.19,35.61994928]
[1743909098008,0.20205106,120.2,120.19,35.68294928]
[1743909107733,0.20205106,120.2,120.19,85.69294928]
[1743909107939,0.20205106,120.2,120.19,35.68294928]
[1743909108729,0.20205106,120.2,120.19,101.85821212]
[1743909110116,0.20205106,120.2,120.19,0.063]
[1743909110321,1.80255106,120.2,120.19,0.063]
[1743909115361,1.97174852,120.2,120.19,0.063]
[1743909116063,1.79969746,120.2,120.19,0.063]
[1743909116457,0.19919746,120.2,120.19,16.60681571]
[1743909116851,0.19919746,120.2,120.19,17.03330042]
[1743909117046,0.19919746,120.2,120.19,35.68294928]
[1743909119665,0.19919746,120.2,120.19,101.85821212]
[1743909120161,0.19919746,120.2,120.19,35.68294928]
[1743909120660,0.19919746,120.2,120.19,0.063]
[1743909125866,0.19919746,120.2,120.19,16.60681571]
[1743909126370,0.19919746,120.2,120.19,43.03330042]
[1743909135474,0.37442059,120.2,120.19,43.03330042]
[1743909136073,0.20522313,120.2,120.19,43.03330042]
[1743909142282,0.20522313,120.2,120.19,26.48948471]
[1743909142467,0.20522313,120.2,120.19,43.03330042]
[1743909145473,0.20522313,120.2,120.19,26.063]
[1743909147583,0.20522313,120.2,120.19,43.03330042]
[1743909151297,0.20522313,120.2,120.19,61.68294928]
[1743909155500,0.38660061,120.2,120.19,61.68294928]
[1743909156073,0.21137748,120.2,120.19,61.68294928]
[1743909165304,0.1826742,120.21,120.2,69.08613357]
[1743909165596,0.18653713,120.24,120.23,45.07613357]
[1743909165819,0.18653713,120.24,120.23,68.63994928]
[1743909166597,0.18137587,120.25,120.24,16.97030042]
[1743909167183,0.18137587,120.25,120.24,35.61994928]
[1743909168212,0.17392117,120.28,120.25,19.07613357]
[1743909168406,0.15107164,120.29,120.28,61.61994928]
[1743909168713,0.03,120.32,120.29,0.28432314]
[1743909168922,0.03,120.32,120.31,16.97030042]
[1743909170310,0.03,120.32,120.31,35.61994928]
[1743909171643,0.03,120.32,120.31,0.42648471]
[1743909172319,0.03,120.32,120.31,42.97030042]
[1743909173487,0.03,120.32,120.31,42.54381571]
[1743909173693,0.03,120.32,120.31,26.0]
[1743909175498,0.18422595,120.32,120.31,26.0]
[1743909176415,0.18422595,120.32,120.31,42.54381571]
[1743909177610,0.18422595,120.32,120.29,16.97030042]
[1743909177814,6.23702595,120.32,120.3,7.02]
[1743909178117,7.88572595,120.32,120.3,7.02]
[1743909179314,7.88572595,120.32,120.28,16.54381571]
[1743909179512,7.88572595,120.32,120.28,23.56381571]
[1743909179718,7.88572595,120.32,120.29,16.54381571]
[1743909181114,24.42954166,120.32,120.27,0.42648471]
[1743909181426,24.42954166,120.32,120.26,18.64964886]
[1743909181427,23.00621571,120.28,120.24,7.083]
[1743909182212,23.00621571,120.28,120.24,23.62681571]
[1743909182697,18.12231571,120.27,120.24,7.083]
[1743909182902,16.54381571,120.26,120.24,7.083]
[1743909183329,18.12231571,120.27,120.24,7.083]
[1743909183722,1.5785,120.27,120.24,7.083]
[1743909183933,1.5785,120.27,120.24,23.62681571]
[1743909184131,6.4624,120.28,120.25,16.54381571]
[1743909184317,6.4624,120.28,120.26,16.54381571]
[1743909185135,6.4624,120.28,120.25,0.42648471]
[1743909185737,6.4624,120.28,120.25,16.97030042]
[1743909187633,81.8,120.29,120.27,16.54381571]
[1743909188006,81.83,120.29,120.27,16.54381571]
[1743909188213,81.83,120.29,120.25,35.61994928]
[1743909189532,81.83,120.29,120.25,16.97030042]
[1743909189832,98.37381571,120.29,120.27,26.0]
[1743909192146,98.37381571,120.29,120.24,16.60681571]
[1743909192147,16.54381571,120.28,120.24,16.60681571]
[1743909192442,16.54381571,120.28,120.24,7.083]
[1743909195415,0.16250266,120.25,120.24,7.083]
[1743909196649,0.16250266,120.25,120.24,23.62681571]
[1743909198749,0.16250266,120.25,120.24,0.063]
[1743909204838,16.70631837,120.25,120.24,0.063]
[1743909205542,0.16250266,120.25,120.24,0.063]
[1743909210450,0.16250266,120.25,120.24,16.60681571]
[1743909211745,0.16250266,120.25,120.24,23.62681571]
[1743909212153,0.16250266,120.25,120.24,7.083]
[1743909215452,0.31763804,120.25,120.24,7.083]
[1743909216048,0.15513538,120.25,120.24,7.083]
[1743909228757,81.95513538,120.25,120.24,7.083]
[1743909228957,81.95513538,120.25,120.24,0.063]
[1743909229162,98.49895109,120.25,120.24,0.063]
[1743909230556,81.95513538,120.25,120.24,0.063]
[1743909235565,82.11003584,120.25,120.24,0.063]
[1743909236145,81.95490046,120.25,120.24,0.063]
[1743909242085,106.15991617,120.25,120.24,0.063]
[1743909245248,24.35991617,120.25,120.24,0.063]
[1743909246878,49.11508817,120.25,120.24,0.063]
[1743909247356,49.11508817,120.25,120.19,0.063]
[1743909247556,16.54381571,120.21,120.19,0.063]
[1743909247777,16.54381571,120.2,120.19,0.063]
[1743909253981,16.54381571,120.22,120.19,0.063]
[1743909254379,16.54381571,120.21,120.19,0.063]
[1743909254573,16.54381571,120.22,120.19,0.063]
[1743909255378,0.15553561,120.2,120.19,0.063]
[1743909256171,16.69935132,120.2,120.19,0.063]
[1743909258469,0.15553561,120.2,120.19,0.063]
[1743909275403,0.32260293,120.2,120.19,0.063]
[1743909276008,0.16706732,120.2,120.19,0.063]
[1743909280991,0.08114719,120.21,120.19,0.063]
[1743909281189,16.6249629,120.21,120.19,0.063]
[1743909283817,0.08114719,120.21,120.19,0.063]
[1743909287516,16.6249629,120.21,120.19,0.063]
[1743909290809,0.08114719,120.21,120.19,0.063]
[1743909291515,0.11114719,120.21,120.19,0.063]
[1743909295499,0.18207659,120.2,120.19,0.063]
[1743909299217,0.18207659,120.2,120.19,17.03330042]
[1743909299528,0.18207659,120.2,120.19,24.05330042]
[1743909300429,0.18207659,120.2,120.19,7.083]
[1743909300719,0.18207659,120.2,120.19,0.063]
[1743909302514,0.18207659,120.2,120.19,16.60681571]
[1743909304429,0.18207659,120.2,120.19,17.03330042]
[1743909304626,0.18207659,120.2,120.19,18.56450042]
[1743909306925,0.18207659,120.2,120.19,0.063]
[1743909315438,0.34188821,120.2,120.19,0.063]
[1743909316040,0.15981162,120.2,120.19,0.063]
[1743909327244,0.15981162,120.2,120.19,16.60681571]
[1743909329950,0.15981162,120.2,120.19,17.03330042]
[1743909335446,0.33283554,120.2,120.19,17.03330042]
[1743909336062,0.17302392,120.2,120.19,17.03330042]
[1743909340877,0.17302392,120.2,120.19,0.063]
[1743909341058,0.17302392,120.2,120.19,16.60681571]
[1743909355254,0.17302392,120.2,120.19,35.68294928]
[1743909355460,0.35158544,120.22,120.2,20.65593357]
[1743909355659,0.33740434,120.23,120.22,18.64964886]
[1743909355975,0.33740434,120.23,120.22,35.19346457]
[1743909356158,0.16907541,120.23,120.22,16.54381571]
[1743909356856,0.16907541,120.23,120.22,35.19346457]
[1743909358956,0.16907541,120.23,120.22,42.21346457]
[1743909360085,0.15905452,120.24,120.23,18.64964886]
[1743909360378,0.15905452,120.24,120.23,35.19346457]
[1743909361187,0.15905452,120.24,120.23,35.61994928]
[1743909362160,0.16816851,120.25,120.24,16.97030042]
[1743909364787,0.15491725,120.26,120.24,35.61994928]
[1743909364974,0.15491725,120.26,120.25,16.97030042]
[1743909366085,0.15491725,120.26,120.25,83.14556326]
[1743909366464,0.15491725,120.26,120.25,87.20832017]
[1743909366798,0.18071628,120.27,120.26,0.42648471]
[1743909366997,0.18071628,120.27,120.26,108.81521212]
[1743909367977,0.15358622,120.28,120.26,115.42494458]
[1743909368185,0.15358622,120.28,120.27,16.97030042]
[1743909368882,0.15358622,120.28,120.27,35.61994928]
[1743909370664,0.03,120.32,120.31,26.42648471]
[1743909370866,0.03,120.32,120.31,68.63994928]
[1743909371066,0.03,120.32,120.31,49.99030042]
[1743909373487,0.03,120.32,120.31,68.63994928]
[1743909375693,0.20128434,120.32,120.31,68.63994928]
[1743909376990,0.20128434,120.32,120.31,49.99030042]
[1743909378095,0.20128434,120.32,120.31,68.63994928]
[1743909385714,0.1801175,120.33,120.32,0.28432314]
[1743909385884,0.15843831,120.35,120.34,61.19346457]
[1743909387184,0.15843831,120.35,120.34,61.61994928]
[1743909387386,0.18248645,120.36,120.35,0.42648471]
[1743909387592,0.18248645,120.36,120.35,23.97030042]
[1743909388204,0.18094377,120.37,120.35,42.61994928]
[1743909388402,0.18094377,120.37,120.36,16.97030042]
[1743909391108,0.17319207,120.38,120.37,0.42648471]
[1743909391286,0.17319207,120.38,120.37,16.97030042]
[1743909393396,0.17319207,120.38,120.37,35.61994928]
[1743909394626,0.17157226,120.39,120.37,35.61994928]
[1743909394819,0.17157226,120.39,120.38,16.97030042]
[1743909395622,0.34300453,120.39,120.38,16.97030042]
[1743909395922,0.34300453,120.39,120.38,35.61994928]
[1743909396091,0.17143227,120.39,120.38,35.61994928]
[1743909396485,0.17143227,120.39,120.38,35.47778771]
[1743909396790,0.17143227,120.39,120.33,67.83506284]
[1743909397015,0.17143227,120.39,120.37,16.54381571]
[1743909397397,0.17143227,120.39,120.38,16.54381571]
[1743909401294,0.17143227,120.39,120.38,26.0]
[1743909408221,0.20143227,120.39,120.38,26.0]
[1743909411011,0.20143227,120.39,120.38,42.54381571]
[1743909411204,0.20143227,120.39,120.38,26.0]
[1743909413826,0.20143227,120.39,120.37,0.063]
[1743909413827,16.74524798,120.39,120.37,0.063]
[1743909415533,0.18101551,120.38,120.37,0.063]
[1743909418828,81.98101551,120.38,120.37,0.063]
[1743909419836,16.72483122,120.38,120.37,0.063]
[1743909420040,18.39063122,120.38,120.37,0.063]
[1743909420440,24.81823122,120.38,120.37,0.063]
[1743909422445,30.63313122,120.38,120.37,0.063]
[1743909423130,6.9276,120.36,120.29,16.60681571]
[1743909423330,16.54381571,120.33,120.29,0.063]
[1743909423517,98.34381571,120.32,120.29,0.063]
[1743909424712,98.34381571,120.31,120.29,0.063]
[1743909425425,99.85391571,120.3,120.29,0.063]
[1743909425625,18.05391571,120.3,120.29,0.063]
[1743909432736,43.30658771,120.3,120.29,0.063]
[1743909432916,49.76794928,120.3,120.29,0.063]
[1743909434038,43.80708771,120.3,120.29,0.063]
[1743909435421,24.55285828,120.3,120.29,0.063]
[1743909437526,25.05285828,120.3,120.29,0.063]
[1743909438236,24.55285828,120.3,120.29,0.063]
[1743909438438,25.05285828,120.3,120.29,0.063]
[1743909438951,24.55285828,120.3,120.29,0.063]
[1743909439243,25.05285828,120.3,120.29,0.063]
[1743909439948,24.55285828,120.3,120.29,0.063]
[1743909441872,25.05285828,120.3,120.29,0.063]
[1743909442445,24.55285828,120.3,120.29,0.063]
[1743909443030,25.05285828,120.3,120.29,0.063]
[1743909443246,30.87155828,120.3,120.29,0.063]
[1743909444561,49.52120714,120.3,120.29,0.063]
[1743909445742,43.70250714,120.3,120.29,0.063]
[1743909446768,49.52120714,120.3,120.29,0.063]
[1743909447261,26.65869143,120.3,120.29,0.063]
[1743909447552,18.82939143,120.3,120.29,0.063]
[1743909447755,16.72355828,120.3,120.29,0.063]
[1743909454467,44.24873028,120.3,120.29,0.063]
[1743909455463,50.24247679,120.3,120.29,0.063]
[1743909456153,50.06273422,120.3,120.29,0.063]
[1743909456749,44.24403422,120.3,120.29,0.063]
[1743909457073,0.17504651,120.3,120.29,0.063]
[1743909457243,16.71886222,120.3,120.29,0.063]
[1743909458274,0.17504651,120.3,120.29,0.063]
[1743909458575,16.71886222,120.3,120.29,0.063]
[1743909475482,16.87745018,120.3,120.29,0.063]
[1743909476158,16.70240367,120.3,120.29,0.063]
[1743909479486,0.15858796,120.3,120.29,0.063]
[1743909479689,16.70240367,120.3,120.29,0.063]
[1743909483497,35.35205253,120.3,120.29,0.063]
[1743909483790,41.95507567,120.3,120.29,0.063]
[1743909486698,16.70240367,120.3,120.29,0.063]
[1743909486876,35.35205253,120.3,120.29,0.063]
[1743909487589,16.70240367,120.3,120.29,0.063]
[1743909487784,35.35205253,120.3,120.29,0.063]
[1743909491294,35.85205253,120.3,120.29,0.063]
[1743909491605,41.67075253,120.3,120.29,0.063]
[1743909492815,18.80823682,120.3,120.29,0.063]
[1743909492984,35.35205253,120.3,120.29,0.063]
[1743909493183,35.85205253,120.3,120.29,0.063]
[1743909495006,35.35205253,120.3,120.29,0.063]
[1743909495511,35.51818376,120.3,120.29,0.063]
[1743909496097,35.3595958,120.3,120.29,0.063]
[1743909496410,35.8595958,120.3,120.29,0.063]
[1743909497181,41.6782958,120.3,120.29,0.063]
[1743909497383,41.96261894,120.3,120.29,0.063]
[1743909498619,41.46261894,120.3,120.29,0.063]
[1743909498795,41.96261894,120.3,120.29,0.063]
[1743909499198,41.46261894,120.3,120.29,0.063]
[1743909499509,41.96261894,120.3,120.29,0.063]
[1743909501212,42.10478051,120.3,120.29,0.063]
[1743909502598,36.14391894,120.3,120.29,0.063]
[1743909506484,41.96261894,120.3,120.29,0.063]
[1743909506691,0.5,120.27,120.24,0.063]
[1743909506903,16.54381571,120.25,120.24,0.063]
[1743909508307,17.04381571,120.25,120.24,0.063]
[1743909515512,17.19640733,120.25,120.24,0.063]
[1743909517323,41.66725619,120.25,120.24,0.063]
[1743909519025,41.95157933,120.25,120.24,0.063]
[1743909519819,0.5,120.23,120.19,0.063]
[1743909520024,16.54381571,120.2,120.19,0.063]
[1743909520599,16.54381571,120.21,120.19,0.063]
[1743909521906,16.54381571,120.2,120.19,0.063]
[1743909522311,16.54381571,120.21,120.19,0.063]
[1743909523527,16.54381571,120.22,120.19,0.063]
[1743909524436,81.8,120.21,120.19,0.063]
[1743909530249,81.8,120.2,120.19,0.063]
[1743909535531,81.95264079,120.2,120.19,0.063]
[1743909538538,98.4964565,120.2,120.19,0.063]
[1743909538919,16.6964565,120.2,120.19,0.063]
[1743909539122,17.1964565,120.2,120.19,0.063]
[1743909539462,74.09619007,120.2,120.19,0.063]
[1743909539738,16.54381571,120.17,120.16,0.063]
[1743909540234,17.04381571,120.17,120.16,0.063]
[1743909541137,61.09994928,120.17,120.16,0.063]
[1743909541527,60.59994928,120.17,120.16,0.063]
[1743909541730,35.47778771,120.17,120.16,0.063]
[1743909542042,16.54381571,120.17,120.16,0.063]
[1743909542219,134.7,120.19,120.16,0.063]
[1743909542426,151.24381571,120.19,120.16,0.063]
[1743909546748,134.7,120.19,120.16,0.063]
[1743909547045,151.24381571,120.19,120.16,0.063]
[1743909548131,16.54381571,120.18,120.16,0.063]
[1743909549538,16.54381571,120.18,120.17,26.0]
[1743909552051,16.54381571,120.18,120.16,0.063]
[1743909555557,0.16811549,120.17,120.16,0.063]
[1743909561154,16.7119312,120.17,120.16,0.063]
[1743909561453,41.4709032,120.17,120.16,0.063]
[1743909561660,47.5793032,120.17,120.16,0.063]
[1743909561976,49.2079032,120.17,120.16,0.063]
[1743909563257,74.33006477,120.17,120.16,0.063]
[1743909563632,81.737,120.15,120.14,0.063]
[1743909563832,98.28081571,120.15,120.14,0.063]
[1743909568360,16.54381571,120.15,120.14,0.063]
[1743909575568,16.70781637,120.15,120.14,0.063]
[1743909593764,48.62994994,120.15,120.14,0.063]
[1743909593971,19.433972,120.13,120.11,0.063]
[1743909594171,16.54381571,120.12,120.11,0.063]
[1743909595581,0.15186163,120.12,120.11,0.063]
[1743909595758,16.69567734,120.12,120.11,0.063]
[1743909600884,22.52317734,120.12,120.11,0.063]
[1743909601190,23.02317734,120.12,120.11,0.063]
[1743909601784,41.95714934,120.12,120.11,0.063]
[1743909601994,41.95714934,120.12,120.09,0.063]
[1743909601995,42.54381571,120.1,120.09,0.063]
[1743909602193,16.54381571,120.1,120.09,0.063]
[1743909614896,134.7,120.11,120.09,0.063]
[1743909615101,16.54381571,120.1,120.09,0.063]
[1743909615593,16.69733236,120.1,120.09,0.063]
[1743909627717,0.15351665,120.1,120.09,0.063]
[1743909633232,0.15351665,120.1,120.09,16.60681571]
[1743909635533,0.31978497,120.1,120.09,16.60681571]
[1743909636112,0.16626832,120.1,120.09,16.60681571]
[1743909647248,0.16626832,120.1,120.09,0.063]
[1743909647744,16.71008403,120.1,120.09,0.063]
[1743909654657,22.53848403,120.1,120.09,0.063]
[1743909654848,49.1346176,120.1,120.09,0.063]
[1743909655050,16.54381571,120.06,120.03,0.063]
[1743909655554,0.15023277,120.04,120.03,26.063]
[1743909660365,0.15023277,120.04,120.03,0.063]
[1743909669153,0.15023277,120.04,120.03,16.60681571]
[1743909675568,0.3303618,120.04,120.03,16.60681571]
[1743909676069,0.18012903,120.04,120.03,16.60681571]
[1743909676478,16.72394474,120.04,120.03,0.063]
[1743909677273,0.18012903,120.04,120.03,0.063]
[1743909677471,16.72394474,120.04,120.03,0.063]
[1743909680448,0.18012903,120.04,120.03,0.063]
[1743909681272,0.18012903,120.04,120.03,16.60681571]
[1743909682479,0.18012903,120.04,120.03,0.063]
[1743909685482,16.72394474,120.04,120.03,0.063]
[1743909686982,0.18012903,120.04,120.03,0.063]
[1743909690782,16.72394474,120.04,120.03,0.063]
[1743909691362,0.18012903,120.04,120.03,0.063]
[1743909691765,16.72394474,120.04,120.03,0.063]
[1743909693876,0.18012903,120.04,120.03,0.063]
[1743909695688,0.35156176,120.04,120.03,0.063]
[1743909696093,0.17143273,120.04,120.03,0.063]
[1743909697691,16.71524844,120.04,120.03,0.063]
[1743909705905,0.17143273,120.04,120.03,0.063]
[1743909715711,0.34021649,120.04,120.03,0.063]
[1743909716012,0.16878376,120.04,120.03,0.063]
[1743909723911,16.71259947,120.04,120.03,0.063]
[1743909724314,0.16878376,120.04,120.03,0.063]
[1743909735709,0.33151028,120.04,120.03,0.063]
[1743909736106,0.16272652,120.04,120.03,0.063]
[1743909755620,0.33437871,120.04,120.03,0.063]
[1743909756137,0.17165219,120.04,120.03,0.063]
[1743909757217,48.5467679,120.04,120.03,0.063]
[1743909757426,26.0,120.0,119.96,13.15723289]
[1743909757632,16.54381571,119.98,119.96,13.15723289]
[1743909758714,16.54381571,119.97,119.96,13.15723289]
[1743909759444,16.54381571,119.97,119.96,0.063]
[1743909760416,22.37851571,119.97,119.96,0.063]
[1743909760622,22.87851571,119.97,119.96,0.063]
[1743909760927,29.89851571,119.97,119.96,0.063]
[1743909762344,22.87851571,119.97,119.96,0.063]
[1743909762528,29.89851571,119.97,119.96,0.063]
[1743909764428,48.83248771,119.97,119.96,0.063]
[1743909764935,183.53248771,119.97,119.96,0.063]
[1743909765628,183.03248771,119.97,119.96,0.063]
[1743909765834,183.53248771,119.97,119.96,0.063]
[1743909766719,158.26381571,119.97,119.96,0.063]
[1743909766925,141.72,119.97,119.96,0.063]
[1743909767243,158.26381571,119.97,119.96,0.063]
[1743909768841,183.53248771,119.97,119.96,0.063]
[1743909770941,48.97464928,119.97,119.96,0.063]
[1743909774858,81.674,119.95,119.94,0.063]
[1743909775159,98.21781571,119.95,119.94,0.063]
[1743909775662,98.38267942,119.95,119.94,0.063]
[1743909776663,16.70867942,119.95,119.94,0.063]
[1743909782259,0.16486371,119.95,119.94,0.063]
[1743909782438,0.16486371,119.95,119.94,16.60681571]
[1743909784359,0.16486371,119.95,119.94,0.063]
[1743909793471,41.97835142,119.95,119.94,0.063]
[1743909795664,42.15354162,119.95,119.94,0.063]
[1743909795983,41.65354162,119.95,119.94,0.063]
[1743909796159,41.98867791,119.95,119.94,0.063]
[1743909797686,41.48867791,119.95,119.94,0.063]
[1743909797871,41.98867791,119.95,119.94,0.063]
[1743909799284,0.16041056,120.04,120.03,0.5]
[1743909799468,0.16041056,120.04,120.03,36.11994928]
[1743909799669,0.16041056,120.04,120.03,0.5]
[1743909799883,16.70422627,120.04,119.97,26.5]
[1743909800083,0.30257213,120.04,120.0,16.54381571]
[1743909800384,0.16041056,120.04,120.0,0.5]
[1743909800565,0.16041056,120.04,120.0,17.04381571]
[1743909800766,0.16041056,120.04,120.01,2.5852972]
[1743909801287,0.16041056,120.04,120.02,6.3323]
[1743909801473,195.24,120.03,120.02,6.3323]
[1743909802484,195.24,120.03,120.02,8.41741084]
[1743909804293,277.04,120.03,120.02,7.91741084]
[1743909804787,211.78381571,120.03,120.02,7.91741084]
[1743909805171,195.24,120.03,120.02,7.91741084]
[1743909810991,195.24,120.03,120.02,39.58889358]
[1743909811183,166.27446174,120.03,120.02,39.58889358]
[1743909811372,166.27446174,120.03,120.02,7.91741084]
[1743909812491,182.81827745,120.03,120.02,7.91741084]
[1743909813183,182.81827745,120.03,120.02,5.8323]
[1743909813574,166.33746174,120.03,120.01,5.8328]
[1743909815683,166.49683097,120.03,120.02,7.91749759]
[1743909816690,183.04064668,120.03,120.02,7.91749759]
[1743909817393,183.04064668,120.03,120.02,5.8323]
[1743909817703,183.04064668,120.03,120.0,5.8333]
[1743909818002,166.49683097,120.03,120.0,5.8333]
[1743909818204,166.49683097,120.03,120.0,6.3333]
[1743909818700,166.49683097,120.03,120.01,2.08518865]
[1743909819291,183.04064668,120.03,120.02,2.08518865]
[1743909819805,219.52618494,120.03,120.02,7.91748865]
[1743909820102,202.98236923,120.03,120.02,7.91748865]
[1743909821381,219.52618494,120.03,120.02,2.08518865]
[1743909822504,219.52618494,120.03,119.99,5.8338]
[1743909822706,16.54381571,120.02,119.99,5.8338]
[1743909824404,16.54381571,120.02,120.0,2.08530433]
[1743909824613,219.52618494,120.03,120.0,2.08530433]
[1743909824806,219.52618494,120.03,120.01,5.8328]
[1743909825895,219.52618494,120.03,119.98,19.34251763]
[1743909826097,219.52618494,120.03,120.01,0.03]
[1743909826497,81.8,120.02,120.01,0.03]
[1743909827091,81.8,120.02,120.01,7.94808144]
[1743909828011,81.8,120.02,120.01,2.11528144]
[1743909828199,98.34381571,120.02,120.01,2.11528144]
[1743909829199,16.54381571,120.02,120.01,0.03]
[1743909835015,202.98236923,120.03,120.01,0.03]
[1743909835217,219.52618494,120.03,120.01,0.03]
[1743909835510,202.98236923,120.03,120.01,0.03]
[1743909835713,16.69592602,120.02,120.01,0.03]
[1743909841806,16.54381571,120.02,120.01,0.03]
[1743909842620,16.54381571,120.02,120.01,2.11566254]
[1743909846997,202.99576258,120.03,120.01,7.94846254]
[1743909847200,0.23576258,120.03,120.01,7.94846254]
[1743909847401,195.39576258,120.03,120.02,2.08566254]
[1743909850115,277.19576258,120.03,120.02,2.08566254]
[1743909850438,277.19576258,120.03,120.02,7.91796254]
[1743909851434,277.19576258,120.03,120.02,2.08566254]
[1743909854414,277.19576258,120.03,120.02,7.91796254]
[1743909855526,277.19576258,120.03,120.02,20.92618017]
[1743909855728,277.35497892,120.03,120.02,20.92618017]
[1743909856028,277.18221634,120.03,120.02,20.92618017]
[1743909856934,277.18221634,120.03,120.02,7.91796254]
[1743909858228,277.18221634,120.03,120.02,20.92618017]
[1743909861841,293.72603205,120.03,120.02,15.09388017]
[1743909863026,293.72603205,120.03,120.02,2.08566254]
[1743909864738,211.92603205,120.03,120.02,2.08566254]
[1743909867539,217.75783205,120.03,120.02,2.08566254]
[1743909867725,236.83396562,120.03,120.02,2.08566254]
[1743909868415,236.83396562,120.03,120.01,0.03]
[1743909868614,16.54381571,120.02,120.01,0.03]
[1743909869041,22.37611571,120.02,120.01,0.03]
[1743909869622,41.45224928,120.02,120.01,0.03]
[1743909869823,43.06004928,120.02,120.01,0.03]
[1743909874848,18.15161571,120.02,120.01,0.03]
[1743909875748,18.32424987,120.02,120.01,0.03]
[1743909881740,24.15654987,120.02,120.01,0.03]
[1743909882858,43.23268344,120.02,120.01,0.03]
[1743909883160,16.54381571,119.98,119.96,18.84321763]
[1743909883758,16.54381571,119.98,119.97,2.08612285]
[1743909885158,211.72381571,119.98,119.97,2.08612285]
[1743909886156,195.18,119.98,119.97,7.92082285]
[1743909891352,195.18,119.98,119.97,5.8347]
[1743909891757,195.18,119.98,119.95,5.8357]
[1743909892258,195.18,119.98,119.96,2.08615207]
[1743909893460,195.18,119.98,119.95,5.8357]
[1743909894666,16.54381571,119.97,119.94,18.90731763]
[1743909894855,16.54381571,119.96,119.94,18.90731763]
[1743909895439,16.54381571,119.97,119.94,18.90731763]
[1743909895655,0.17646248,119.95,119.94,18.90731763]
[1743909897359,0.17646248,119.95,119.94,13.07121763]
[1743909897567,16.72027819,119.95,119.94,0.063]
[1743909900968,22.55597819,119.95,119.94,0.063]
[1743909903170,22.9824629,119.95,119.94,0.063]
[1743909903549,29.2873629,119.95,119.94,0.063]
[1743909903965,1.5923,119.93,119.9,0.063]
[1743909904268,16.54381571,119.91,119.9,0.063]
[1743909905152,22.38151571,119.91,119.9,0.063]
[1743909905453,88.55677855,119.91,119.9,0.063]
[1743909907369,107.63291212,119.91,119.9,0.063]
[1743909907567,107.674,119.89,119.84,0.5]
[1743909907772,16.54381571,119.87,119.83,0.5]
[1743909908877,16.54381571,119.87,119.84,5.8411]
[1743909909078,16.54381571,119.87,119.84,6.3411]
[1743909909264,98.21781571,119.86,119.84,5.8411]
[1743909909468,81.674,119.85,119.84,5.8411]
[1743909910062,81.674,119.85,119.84,6.3411]
[1743909910379,81.674,119.85,119.84,5.8411]
[1743909910673,81.674,119.85,119.84,6.3411]
[1743909910878,98.21781571,119.85,119.83,5.8414]
[1743909911077,81.674,119.84,119.82,6.372]
[1743909911262,81.674,119.84,119.82,5.872]
[1743909911263,98.21781571,119.84,119.82,5.872]
[1743909912462,98.21781571,119.84,119.82,0.03]
[1743909912675,81.674,119.84,119.83,0.03]
[1743909912977,16.54381571,119.84,119.83,0.03]
[1743909913384,23.82381571,119.84,119.83,0.03]
[1743909914858,114.91631212,119.84,119.83,0.03]
[1743909915279,134.91631212,119.84,119.83,0.03]
[1743909915483,114.91631212,119.84,119.83,0.03]
[1743909915660,115.08065871,119.84,119.83,0.03]
[1743909917059,23.9881623,119.84,119.83,0.03]
[1743909918181,108.95523557,119.84,119.83,0.03]
[1743909919091,16.54381571,119.81,119.78,10.0139]
[1743909919261,81.74,119.8,119.78,10.0139]
[1743909919469,81.74,119.8,119.79,0.5]
[1743909919690,81.74,119.8,119.78,10.0139]
[1743909919881,81.74,119.8,119.79,0.5]
[1743909920087,28.1916062,119.83,119.81,0.5]
[1743909920298,28.1916062,119.83,119.82,17.04381571]
[1743909920787,81.07630528,119.84,119.82,17.04381571]
[1743909921086,81.07630528,119.84,119.83,5.8416]